[Event "Titled Tuesday Blitz May 17 Late 2022"]
[White "Xiong, Jeffery"]
[Black "Pap, Gyula"]
[WhiteFideId "2047640"]
[BlackFideId "725323"]
[WhiteElo "2727"]
[BlackElo "2553"]
[Result "1-0"]
[Round "09"]
[TimeControl "180+1"]
[Date "2022.05.17"]
[WhiteClock "0:00:28"]
[BlackClock "0:00:01"]

1. e4 {[%clk 0:03:00]}  c6 {[%clk 0:02:59]} 2. c4 {[%clk 0:02:57]}  e6 {[%clk 0:02:55]} 3. d4 {[%clk 0:02:55]}  d5 {[%clk 0:02:56]} 4. Nc3 {[%clk 0:02:56]}  Bb4 {[%clk 0:02:53]} 5. e5 {[%clk 0:02:52]}  Ne7 {[%clk 0:02:52]} 6. Nf3 {[%clk 0:02:42]}  c5 {[%clk 0:02:36]} 7. a3 {[%clk 0:02:42]}  Ba5 {[%clk 0:02:32]} 8. dxc5 {[%clk 0:02:28]}  Bxc3+ {[%clk 0:02:31]} 9. bxc3 {[%clk 0:02:29]}  Nbc6 {[%clk 0:02:28]} 10. cxd5 {[%clk 0:02:25]}  exd5 {[%clk 0:02:12]} 11. Bd3 {[%clk 0:02:25]}  Bf5 {[%clk 0:02:09]} 12. O-O {[%clk 0:02:20]}  O-O {[%clk 0:02:04]} 13. Bxf5 {[%clk 0:02:17]}  Nxf5 {[%clk 0:02:04]} 14. Qd3 {[%clk 0:02:18]}  Nh4 {[%clk 0:01:52]} 15. Ng5 {[%clk 0:02:11]}  Ng6 {[%clk 0:01:50]} 16. f4 {[%clk 0:02:12]}  Qe7 {[%clk 0:01:43]} 17. Be3 {[%clk 0:02:11]}  Rad8 {[%clk 0:01:38]} 18. Rae1 {[%clk 0:02:11]}  f6 {[%clk 0:01:16]} 19. exf6 {[%clk 0:02:03]}  Qxf6 {[%clk 0:01:17]} 20. Bd4 {[%clk 0:01:44]}  Qf5 {[%clk 0:01:13]} 21. Qxf5 {[%clk 0:01:42]}  Rxf5 {[%clk 0:01:13]} 22. Ne6 {[%clk 0:01:43]}  Rd7 {[%clk 0:01:07]} 23. g4 {[%clk 0:01:43]}  Rff7 {[%clk 0:01:01]} 24. f5 {[%clk 0:01:43]}  Nf8 {[%clk 0:01:01]} 25. Nf4 {[%clk 0:01:35]}  Rfe7 {[%clk 0:00:56]} 26. Rxe7 {[%clk 0:01:32]}  Rxe7 {[%clk 0:00:57]} 27. f6 {[%clk 0:01:28]}  Rf7 {[%clk 0:00:16]} 28. Nxd5 {[%clk 0:01:25]}  Ne6 {[%clk 0:00:12]} 29. Be3 {[%clk 0:01:22]}  Ne5 {[%clk 0:00:12]} 30. h3 {[%clk 0:01:19]}  Rd7 {[%clk 0:00:09]} 31. Ne7+ {[%clk 0:01:15]}  Kf7 {[%clk 0:00:09]} 32. fxg7+ {[%clk 0:01:16]}  Kxg7 {[%clk 0:00:08]} 33. Nf5+ {[%clk 0:01:17]}  Kg8 {[%clk 0:00:08]} 34. Bd4 {[%clk 0:01:10]}  Nxd4 {[%clk 0:00:02]} 35. cxd4 {[%clk 0:01:11]}  Nc6 {[%clk 0:00:02]} 36. Rf4 {[%clk 0:01:10]}  b6 {[%clk 0:00:03]} 37. Nd6 {[%clk 0:01:03]}  bxc5 {[%clk 0:00:02]} 38. dxc5 {[%clk 0:01:04]}  Ne7 {[%clk 0:00:02]} 39. Rf7 {[%clk 0:01:00]}  Rc7 {[%clk 0:00:02]} 40. Kf2 {[%clk 0:00:57]}  Nd5 {[%clk 0:00:02]} 41. Rxc7 {[%clk 0:00:56]}  Nxc7 {[%clk 0:00:03]} 42. Ke3 {[%clk 0:00:56]}  Kg7 {[%clk 0:00:02]} 43. Ne4 {[%clk 0:00:49]}  Kf7 {[%clk 0:00:02]} 44. Kd4 {[%clk 0:00:48]}  Nb5+ {[%clk 0:00:01]} 45. Ke5 {[%clk 0:00:39]}  Nxa3 {[%clk 0:00:02]} 46. Ng5+ {[%clk 0:00:39]}  Ke7 {[%clk 0:00:03]} 47. Nxh7 {[%clk 0:00:40]}  a5 {[%clk 0:00:03]} 48. Kd4 {[%clk 0:00:32]}  a4 {[%clk 0:00:04]} 49. Kc3 {[%clk 0:00:33]}  Nb5+ {[%clk 0:00:03]} 50. Kb4 {[%clk 0:00:32]}  a3 {[%clk 0:00:04]} 51. Kb3 {[%clk 0:00:32]}  Ke6 {[%clk 0:00:02]} 52. g5 {[%clk 0:00:32]}  Kf5 {[%clk 0:00:02]} 53. h4 {[%clk 0:00:30]}  Kg6 {[%clk 0:00:02]} 54. Nf6 {[%clk 0:00:29]}  Na7 {[%clk 0:00:01]} 55. Kxa3 {[%clk 0:00:28]} 1-0


[Site "https://www.chess.com"]

[Event "Titled Tuesday Blitz May 17 Late 2022"]
[White "Yuan, Qingyu"]
[Black "Nazari, Arad"]
[WhiteFideId "8609772"]
[BlackFideId "12577324"]
[WhiteElo "2359"]
[BlackElo "2129"]
[Result "1-0"]
[Round "09"]
[TimeControl "180+1"]
[Date "2022.05.17"]
[WhiteClock "0:00:11"]
[BlackClock "0:00:08"]

1. e4 {[%clk 0:03:00]}  c5 {[%clk 0:02:59]} 2. Nf3 {[%clk 0:03:00]}  d6 {[%clk 0:03:00]} 3. Bb5+ {[%clk 0:03:00]}  Nd7 {[%clk 0:03:00]} 4. c4 {[%clk 0:03:01]}  g6 {[%clk 0:02:57]} 5. Nc3 {[%clk 0:03:00]}  Bg7 {[%clk 0:02:56]} 6. d3 {[%clk 0:02:58]}  Nf6 {[%clk 0:02:57]} 7. h3 {[%clk 0:02:58]}  O-O {[%clk 0:02:57]} 8. Be3 {[%clk 0:02:56]}  Nb6 {[%clk 0:02:57]} 9. O-O {[%clk 0:02:50]}  a6 {[%clk 0:02:58]} 10. Ba4 {[%clk 0:02:50]}  Nxa4 {[%clk 0:02:58]} 11. Nxa4 {[%clk 0:02:51]}  Bd7 {[%clk 0:02:58]} 12. Nc3 {[%clk 0:02:50]}  e5 {[%clk 0:02:58]} 13. Bg5 {[%clk 0:02:43]}  Be6 {[%clk 0:02:47]} 14. a3 {[%clk 0:02:40]}  h6 {[%clk 0:02:46]} 15. Bxf6 {[%clk 0:02:40]}  Bxf6 {[%clk 0:02:47]} 16. b4 {[%clk 0:02:35]}  b6 {[%clk 0:02:46]} 17. Ne1 {[%clk 0:02:28]}  Kg7 {[%clk 0:02:43]} 18. Nc2 {[%clk 0:02:28]}  Qd7 {[%clk 0:02:28]} 19. Ne3 {[%clk 0:02:26]}  Rfb8 {[%clk 0:02:19]} 20. Rb1 {[%clk 0:02:20]}  Bd8 {[%clk 0:02:14]} 21. Qc2 {[%clk 0:02:06]}  b5 {[%clk 0:02:09]} 22. Ncd5 {[%clk 0:01:40]}  cxb4 {[%clk 0:02:06]} 23. axb4 {[%clk 0:01:32]}  Bg5 {[%clk 0:02:04]} 24. c5 {[%clk 0:01:18]}  dxc5 {[%clk 0:01:58]} 25. Qxc5 {[%clk 0:01:03]}  Rc8 {[%clk 0:01:50]} 26. Nb6 {[%clk 0:00:52]}  Rxc5 {[%clk 0:01:06]} 27. Nxd7 {[%clk 0:00:52]}  Rc3 {[%clk 0:00:51]} 28. Nxe5 {[%clk 0:00:42]}  Bf4 {[%clk 0:00:46]} 29. d4 {[%clk 0:00:33]}  Rxe3 {[%clk 0:00:35]} 30. fxe3 {[%clk 0:00:30]}  Bxe3+ {[%clk 0:00:36]} 31. Kh1 {[%clk 0:00:29]}  Bxd4 {[%clk 0:00:36]} 32. Nc6 {[%clk 0:00:26]}  Bb6 {[%clk 0:00:36]} 33. Ra1 {[%clk 0:00:18]}  Rc8 {[%clk 0:00:29]} 34. Ne7 {[%clk 0:00:12]}  Ra8 {[%clk 0:00:20]} 35. Nd5 {[%clk 0:00:12]}  Bd4 {[%clk 0:00:20]} 36. Ra3 {[%clk 0:00:09]}  Bb2 {[%clk 0:00:19]} 37. Ra2 {[%clk 0:00:09]}  Be5 {[%clk 0:00:19]} 38. Rc1 {[%clk 0:00:07]}  f5 {[%clk 0:00:17]} 39. Rc6 {[%clk 0:00:07]}  Kf7 {[%clk 0:00:16]} 40. Raxa6 {[%clk 0:00:05]}  Rxa6 {[%clk 0:00:16]} 41. Rxa6 {[%clk 0:00:05]}  fxe4 {[%clk 0:00:17]} 42. Ra7+ {[%clk 0:00:04]}  Kf8 {[%clk 0:00:08]} 43. Re7 {[%clk 0:00:04]}  Bxd5 {[%clk 0:00:05]} 44. Rxe5 {[%clk 0:00:05]}  Bc4 {[%clk 0:00:02]} 45. Rxe4 {[%clk 0:00:05]}  Kf7 {[%clk 0:00:03]} 46. Kg1 {[%clk 0:00:04]}  Kf6 {[%clk 0:00:04]} 47. Kf2 {[%clk 0:00:05]}  Kf5 {[%clk 0:00:04]} 48. Ke3 {[%clk 0:00:05]}  g5 {[%clk 0:00:05]} 49. g3 {[%clk 0:00:04]}  h5 {[%clk 0:00:05]} 50. Kd4 {[%clk 0:00:04]}  Bf1 {[%clk 0:00:02]} 51. Re5+ {[%clk 0:00:05]}  Kf6 {[%clk 0:00:02]} 52. h4 {[%clk 0:00:05]}  gxh4 {[%clk 0:00:02]} 53. gxh4 {[%clk 0:00:06]}  Kg6 {[%clk 0:00:02]} 54. Rg5+ {[%clk 0:00:06]}  Kh6 {[%clk 0:00:03]} 55. Kc5 {[%clk 0:00:07]}  Be2 {[%clk 0:00:03]} 56. Kb6 {[%clk 0:00:08]}  Bf1 {[%clk 0:00:04]} 57. Rxb5 {[%clk 0:00:08]}  Bxb5 {[%clk 0:00:04]} 58. Kxb5 {[%clk 0:00:08]}  Kg6 {[%clk 0:00:05]} 59. Kc5 {[%clk 0:00:07]}  Kf5 {[%clk 0:00:05]} 60. b5 {[%clk 0:00:08]}  Kg4 {[%clk 0:00:06]} 61. b6 {[%clk 0:00:09]}  Kxh4 {[%clk 0:00:07]} 62. b7 {[%clk 0:00:10]}  Kg3 {[%clk 0:00:08]} 63. b8=Q+ {[%clk 0:00:11]} 1-0


[Site "https://www.chess.com"]

[Event "Titled Tuesday Blitz May 17 Late 2022"]
[White "Abdyzhapar, Asylbek"]
[Black "Martic, Ivan"]
[WhiteFideId "13800337"]
[BlackFideId "929301"]
[WhiteElo "2331"]
[BlackElo "2317"]
[Result "0-1"]
[Round "10"]
[TimeControl "180+1"]
[Date "2022.05.17"]
[WhiteClock "0:01:14"]
[BlackClock "0:00:17"]

1. e4 {[%clk 0:03:00]}  c5 {[%clk 0:02:58]} 2. Nf3 {[%clk 0:03:00]}  e6 {[%clk 0:02:57]} 3. b3 {[%clk 0:02:58]}  a6 {[%clk 0:02:56]} 4. Bb2 {[%clk 0:02:58]}  Nc6 {[%clk 0:02:56]} 5. Nc3 {[%clk 0:02:57]}  Nf6 {[%clk 0:02:52]} 6. d4 {[%clk 0:02:57]}  cxd4 {[%clk 0:02:49]} 7. Nxd4 {[%clk 0:02:57]}  Bb4 {[%clk 0:02:47]} 8. Qd3 {[%clk 0:02:57]}  Ne5 {[%clk 0:02:22]} 9. Qg3 {[%clk 0:02:49]}  Qc7 {[%clk 0:02:22]} 10. Ke2 {[%clk 0:02:29]}  Bxc3 {[%clk 0:02:06]} 11. Qxc3 {[%clk 0:02:28]}  Qxc3 {[%clk 0:02:05]} 12. Bxc3 {[%clk 0:02:28]}  Nxe4 {[%clk 0:02:06]} 13. Bb2 {[%clk 0:02:28]}  d6 {[%clk 0:01:56]} 14. f3 {[%clk 0:02:20]}  Nc5 {[%clk 0:01:56]} 15. Kf2 {[%clk 0:02:19]}  Bd7 {[%clk 0:01:53]} 16. Rd1 {[%clk 0:02:18]}  Rc8 {[%clk 0:01:51]} 17. Be2 {[%clk 0:02:17]}  O-O {[%clk 0:01:39]} 18. h4 {[%clk 0:02:16]}  Rfd8 {[%clk 0:01:38]} 19. h5 {[%clk 0:02:16]}  h6 {[%clk 0:01:27]} 20. Rh3 {[%clk 0:02:14]}  f6 {[%clk 0:01:23]} 21. Rg3 {[%clk 0:02:14]}  Kf7 {[%clk 0:01:23]} 22. c4 {[%clk 0:02:10]}  Nc6 {[%clk 0:01:19]} 23. Nc2 {[%clk 0:02:08]}  Be8 {[%clk 0:01:17]} 24. Ne3 {[%clk 0:02:06]}  Ne5 {[%clk 0:00:57]} 25. Rd4 {[%clk 0:01:58]}  b5 {[%clk 0:00:52]} 26. cxb5 {[%clk 0:01:47]}  Bxb5 {[%clk 0:00:47]} 27. Bxb5 {[%clk 0:01:47]}  axb5 {[%clk 0:00:47]} 28. Ng4 {[%clk 0:01:24]}  Ncd3+ {[%clk 0:00:39]} 29. Ke3 {[%clk 0:01:23]}  Nxb2 {[%clk 0:00:38]} 30. Rd2 {[%clk 0:01:22]}  Rc3+ {[%clk 0:00:32]} 31. Ke2 {[%clk 0:01:20]}  Nbd3 {[%clk 0:00:30]} 32. Ne3 {[%clk 0:01:13]}  Nf4+ {[%clk 0:00:28]} 33. Kf2 {[%clk 0:01:14]}  Nxh5 {[%clk 0:00:26]} 34. Rh3 {[%clk 0:01:13]}  Nf4 {[%clk 0:00:26]} 35. Rh4 {[%clk 0:01:14]}  Nfd3+ {[%clk 0:00:24]} 36. Kg3 {[%clk 0:01:14]}  f5 {[%clk 0:00:21]} 37. f4 {[%clk 0:01:13]}  Ng6 {[%clk 0:00:18]} 38. Rh3 {[%clk 0:01:13]}  Ndxf4 {[%clk 0:00:17]} 39. Kf3 {[%clk 0:01:12]}  Nxh3 {[%clk 0:00:17]} 40. gxh3 {[%clk 0:01:13]}  f4 {[%clk 0:00:17]} 41. Ke2 {[%clk 0:01:14]}  Rxe3+ {[%clk 0:00:17]} 0-1


[Site "https://www.chess.com"]

[Event "Titled Tuesday Blitz May 17 Late 2022"]
[White "Demchenko, Anton"]
[Black "Mekhitarian, Krikor Sevag"]
[WhiteFideId "4160258"]
[BlackFideId "2107660"]
[WhiteElo "2539"]
[BlackElo "2598"]
[Result "1-0"]
[Round "10"]
[TimeControl "180+1"]
[Date "2022.05.17"]
[WhiteClock "0:00:08"]
[BlackClock "0:00:05"]

1. e4 {[%clk 0:03:00]}  e5 {[%clk 0:03:00]} 2. Nf3 {[%clk 0:02:59]}  Nf6 {[%clk 0:03:00]} 3. Nxe5 {[%clk 0:02:58]}  d6 {[%clk 0:03:01]} 4. Nf3 {[%clk 0:02:59]}  Nxe4 {[%clk 0:03:01]} 5. Nc3 {[%clk 0:03:00]}  Nf6 {[%clk 0:03:00]} 6. d4 {[%clk 0:03:00]}  d5 {[%clk 0:02:59]} 7. Bd3 {[%clk 0:02:58]}  Be7 {[%clk 0:02:59]} 8. O-O {[%clk 0:02:58]}  O-O {[%clk 0:02:59]} 9. h3 {[%clk 0:02:58]}  c6 {[%clk 0:03:00]} 10. Re1 {[%clk 0:02:57]}  Re8 {[%clk 0:03:00]} 11. Ne5 {[%clk 0:02:54]}  Nbd7 {[%clk 0:03:00]} 12. Qf3 {[%clk 0:02:54]}  Nf8 {[%clk 0:02:59]} 13. Bf4 {[%clk 0:02:52]}  Be6 {[%clk 0:02:59]} 14. Re2 {[%clk 0:02:46]}  Bd6 {[%clk 0:02:33]} 15. Rae1 {[%clk 0:02:42]}  Qc7 {[%clk 0:02:32]} 16. Bg3 {[%clk 0:02:27]}  N6d7 {[%clk 0:02:14]} 17. Bf5 {[%clk 0:01:02]}  Nxe5 {[%clk 0:02:10]} 18. Bxe5 {[%clk 0:00:59]}  Bxe5 {[%clk 0:02:09]} 19. Rxe5 {[%clk 0:00:59]}  Qd7 {[%clk 0:02:04]} 20. Bd3 {[%clk 0:00:57]}  f6 {[%clk 0:01:52]} 21. R5e3 {[%clk 0:00:57]}  Bf7 {[%clk 0:01:52]} 22. Nd1 {[%clk 0:00:55]}  Bg6 {[%clk 0:01:42]} 23. Bxg6 {[%clk 0:00:43]}  hxg6 {[%clk 0:01:39]} 24. h4 {[%clk 0:00:40]}  Kf7 {[%clk 0:01:35]} 25. c3 {[%clk 0:00:39]}  Rxe3 {[%clk 0:01:30]} 26. Nxe3 {[%clk 0:00:39]}  Re8 {[%clk 0:01:30]} 27. g3 {[%clk 0:00:22]}  Re4 {[%clk 0:01:27]} 28. Kg2 {[%clk 0:00:21]}  Qe6 {[%clk 0:01:27]} 29. h5 {[%clk 0:00:20]}  gxh5 {[%clk 0:01:10]} 30. Qxh5+ {[%clk 0:00:20]}  Ng6 {[%clk 0:01:11]} 31. Rh1 {[%clk 0:00:19]}  a5 {[%clk 0:00:22]} 32. a4 {[%clk 0:00:18]}  b6 {[%clk 0:00:21]} 33. Qf3 {[%clk 0:00:18]}  Ne7 {[%clk 0:00:17]} 34. Rh7 {[%clk 0:00:16]}  f5 {[%clk 0:00:15]} 35. Kf1 {[%clk 0:00:09]}  Kg8 {[%clk 0:00:12]} 36. Qh5 {[%clk 0:00:09]}  Ng6 {[%clk 0:00:12]} 37. Qh3 {[%clk 0:00:04]}  f4 {[%clk 0:00:11]} 38. gxf4 {[%clk 0:00:04]}  Qxh3+ {[%clk 0:00:07]} 39. Rxh3 {[%clk 0:00:04]}  Rxf4 {[%clk 0:00:07]} 40. Rg3 {[%clk 0:00:05]}  Nh4 {[%clk 0:00:06]} 41. Rg5 {[%clk 0:00:04]}  Nf3 {[%clk 0:00:05]} 42. Rf5 {[%clk 0:00:04]}  Nd2+ {[%clk 0:00:05]} 43. Ke2 {[%clk 0:00:04]}  Rxf5 {[%clk 0:00:04]} 44. Nxf5 {[%clk 0:00:05]}  Nc4 {[%clk 0:00:04]} 45. b3 {[%clk 0:00:05]}  Na3 {[%clk 0:00:03]} 46. Ne7+ {[%clk 0:00:05]}  Kf7 {[%clk 0:00:04]} 47. Nxc6 {[%clk 0:00:06]}  Ke6 {[%clk 0:00:04]} 48. Kd3 {[%clk 0:00:06]}  b5 {[%clk 0:00:05]} 49. Nxa5 {[%clk 0:00:05]}  bxa4 {[%clk 0:00:05]} 50. bxa4 {[%clk 0:00:06]}  g5 {[%clk 0:00:04]} 51. Nb3 {[%clk 0:00:06]}  Nc4 {[%clk 0:00:04]} 52. a5 {[%clk 0:00:07]}  Kd6 {[%clk 0:00:04]} 53. a6 {[%clk 0:00:07]}  Kc7 {[%clk 0:00:04]} 54. Nc5 {[%clk 0:00:08]}  Kb6 {[%clk 0:00:04]} 55. f3 {[%clk 0:00:08]}  Nd6 {[%clk 0:00:04]} 56. Ne6 {[%clk 0:00:08]}  Nf7 {[%clk 0:00:03]} 57. Nc5 {[%clk 0:00:08]}  Nd6 {[%clk 0:00:03]} 58. Ke3 {[%clk 0:00:08]}  Nb5 {[%clk 0:00:04]} 59. Kd2 {[%clk 0:00:08]}  Nd6 {[%clk 0:00:04]} 60. Kd3 {[%clk 0:00:09]}  Nb5 {[%clk 0:00:04]} 61. Ne6 {[%clk 0:00:09]}  Kxa6 {[%clk 0:00:04]} 62. Nxg5 {[%clk 0:00:09]}  Kb6 {[%clk 0:00:05]} 63. Ne6 {[%clk 0:00:10]}  Kc6 {[%clk 0:00:06]} 64. Nf4 {[%clk 0:00:08]}  Kd6 {[%clk 0:00:05]} 65. Nxd5 {[%clk 0:00:08]} 1-0


[Site "https://www.chess.com"]

[Event "Titled Tuesday Blitz May 17 Late 2022"]
[White "Dubov, Daniil"]
[Black "Kamsky, Gata"]
[WhiteFideId "24126055"]
[BlackFideId "2000024"]
[WhiteElo "2791"]
[BlackElo "2645"]
[Result "1-0"]
[Round "10"]
[TimeControl "180+1"]
[Date "2022.05.17"]
[WhiteClock "0:00:56"]
[BlackClock "0:00:12"]

1. d4 {[%clk 0:02:55]}  Nf6 {[%clk 0:02:55]} 2. Nf3 {[%clk 0:02:44]}  e6 {[%clk 0:02:54]} 3. c4 {[%clk 0:02:31]}  d5 {[%clk 0:02:49]} 4. g3 {[%clk 0:02:32]}  Bb4+ {[%clk 0:02:47]} 5. Nbd2 {[%clk 0:02:13]}  O-O {[%clk 0:02:31]} 6. Bg2 {[%clk 0:02:13]}  b6 {[%clk 0:02:29]} 7. O-O {[%clk 0:02:13]}  a5 {[%clk 0:02:26]} 8. Ne5 {[%clk 0:02:10]}  Bb7 {[%clk 0:02:24]} 9. Qc2 {[%clk 0:02:09]}  Nbd7 {[%clk 0:01:59]} 10. cxd5 {[%clk 0:02:07]}  Nxe5 {[%clk 0:01:54]} 11. dxe5 {[%clk 0:02:07]}  Nxd5 {[%clk 0:01:53]} 12. Ne4 {[%clk 0:02:06]}  Be7 {[%clk 0:01:49]} 13. a3 {[%clk 0:02:06]}  a4 {[%clk 0:01:37]} 14. Rd1 {[%clk 0:02:04]}  Qc8 {[%clk 0:01:19]} 15. Bg5 {[%clk 0:01:59]}  h6 {[%clk 0:01:15]} 16. Bxe7 {[%clk 0:01:53]}  Nxe7 {[%clk 0:01:15]} 17. Rac1 {[%clk 0:01:54]}  Nd5 {[%clk 0:00:51]} 18. Rd4 {[%clk 0:01:49]}  Rd8 {[%clk 0:00:34]} 19. Qd2 {[%clk 0:01:44]}  Qd7 {[%clk 0:00:29]} 20. Nf6+ {[%clk 0:01:40]}  Nxf6 {[%clk 0:00:24]} 21. Rxd7 {[%clk 0:01:37]}  Rxd7 {[%clk 0:00:25]} 22. Qf4 {[%clk 0:01:12]}  Nd5 {[%clk 0:00:24]} 23. Qh4 {[%clk 0:01:12]}  c5 {[%clk 0:00:20]} 24. Rd1 {[%clk 0:01:10]}  Rad8 {[%clk 0:00:18]} 25. Bf3 {[%clk 0:01:07]}  Bc6 {[%clk 0:00:17]} 26. Rd2 {[%clk 0:01:03]}  b5 {[%clk 0:00:18]} 27. Bxd5 {[%clk 0:00:58]}  Bxd5 {[%clk 0:00:15]} 28. e4 {[%clk 0:00:58]}  Bb3 {[%clk 0:00:12]} 29. Qxd8+ {[%clk 0:00:56]}  Rxd8 {[%clk 0:00:12]} 30. Rxd8+ {[%clk 0:00:57]}  Kh7 {[%clk 0:00:12]} 31. Rc8 {[%clk 0:00:56]} 1-0


[Site "https://www.chess.com"]

[Event "Titled Tuesday Blitz May 17 Late 2022"]
[White "Fishbein, Alexander"]
[Black "Chigaev, Maksim"]
[WhiteFideId "2000377"]
[BlackFideId "4108116"]
[WhiteElo "2442"]
[BlackElo "2457"]
[Result "0-1"]
[Round "10"]
[TimeControl "180+1"]
[Date "2022.05.17"]
[WhiteClock "0:00:02"]
[BlackClock "0:00:32"]

1. e4 {[%clk 0:03:00]}  c6 {[%clk 0:02:58]} 2. d4 {[%clk 0:02:56]}  d5 {[%clk 0:02:58]} 3. Nc3 {[%clk 0:02:56]}  dxe4 {[%clk 0:02:59]} 4. Nxe4 {[%clk 0:02:56]}  Bf5 {[%clk 0:02:59]} 5. Nc5 {[%clk 0:02:55]}  b6 {[%clk 0:02:58]} 6. Nb3 {[%clk 0:02:55]}  e6 {[%clk 0:02:58]} 7. Nf3 {[%clk 0:02:55]}  Nf6 {[%clk 0:02:59]} 8. g3 {[%clk 0:02:54]}  Nbd7 {[%clk 0:02:58]} 9. Bg2 {[%clk 0:02:54]}  Rc8 {[%clk 0:02:57]} 10. O-O {[%clk 0:02:54]}  Be7 {[%clk 0:02:58]} 11. Ne5 {[%clk 0:02:50]}  Nxe5 {[%clk 0:02:48]} 12. dxe5 {[%clk 0:02:49]}  Qxd1 {[%clk 0:02:49]} 13. Rxd1 {[%clk 0:02:48]}  Nd5 {[%clk 0:02:47]} 14. Nd4 {[%clk 0:02:45]}  Bg4 {[%clk 0:02:47]} 15. f3 {[%clk 0:02:36]}  Bh5 {[%clk 0:02:46]} 16. c4 {[%clk 0:02:34]}  Nb4 {[%clk 0:02:40]} 17. a3 {[%clk 0:02:28]}  Na6 {[%clk 0:02:41]} 18. Be3 {[%clk 0:02:15]}  Bc5 {[%clk 0:02:34]} 19. b4 {[%clk 0:02:11]}  Bxd4 {[%clk 0:02:32]} 20. Rxd4 {[%clk 0:02:11]}  h6 {[%clk 0:02:18]} 21. Rd6 {[%clk 0:02:08]}  c5 {[%clk 0:02:15]} 22. b5 {[%clk 0:02:07]}  Nc7 {[%clk 0:02:08]} 23. f4 {[%clk 0:02:05]}  Ke7 {[%clk 0:02:08]} 24. a4 {[%clk 0:02:01]}  Rhd8 {[%clk 0:02:07]} 25. Rc6 {[%clk 0:01:22]}  Be2 {[%clk 0:01:38]} 26. Rc1 {[%clk 0:01:03]}  Ne8 {[%clk 0:01:23]} 27. Kf2 {[%clk 0:01:01]}  Rxc6 {[%clk 0:01:13]} 28. Bxc6 {[%clk 0:00:59]}  Bg4 {[%clk 0:01:13]} 29. a5 {[%clk 0:00:54]}  Rd1 {[%clk 0:01:12]} 30. Rxd1 {[%clk 0:00:29]}  Bxd1 {[%clk 0:01:13]} 31. axb6 {[%clk 0:00:28]}  axb6 {[%clk 0:01:13]} 32. Bxc5+ {[%clk 0:00:27]}  bxc5 {[%clk 0:01:14]} 33. b6 {[%clk 0:00:26]}  Nd6 {[%clk 0:01:11]} 34. exd6+ {[%clk 0:00:18]}  Kxd6 {[%clk 0:01:12]} 35. b7 {[%clk 0:00:17]}  Kc7 {[%clk 0:01:12]} 36. Ke3 {[%clk 0:00:17]}  Bc2 {[%clk 0:01:03]} 37. g4 {[%clk 0:00:13]}  g5 {[%clk 0:01:02]} 38. fxg5 {[%clk 0:00:12]}  hxg5 {[%clk 0:01:03]} 39. Kd2 {[%clk 0:00:07]}  Bg6 {[%clk 0:00:51]} 40. Ke3 {[%clk 0:00:07]}  f5 {[%clk 0:00:48]} 41. gxf5 {[%clk 0:00:05]}  exf5 {[%clk 0:00:49]} 42. Bd5 {[%clk 0:00:04]}  Bh5 {[%clk 0:00:41]} 43. Be6 {[%clk 0:00:03]}  f4+ {[%clk 0:00:34]} 44. Ke4 {[%clk 0:00:03]}  Kxb7 {[%clk 0:00:30]} 45. Kf5 {[%clk 0:00:04]}  f3 {[%clk 0:00:30]} 46. Bd5+ {[%clk 0:00:03]}  Kb6 {[%clk 0:00:29]} 47. Kxg5 {[%clk 0:00:03]}  f2 {[%clk 0:00:29]} 48. Bg2 {[%clk 0:00:03]}  Be2 {[%clk 0:00:30]} 49. h4 {[%clk 0:00:02]}  f1=Q {[%clk 0:00:30]} 50. Bxf1 {[%clk 0:00:02]}  Bxf1 {[%clk 0:00:31]} 51. h5 {[%clk 0:00:02]}  Bxc4 {[%clk 0:00:32]} 0-1


[Site "https://www.chess.com"]